[Event "*** SCC Grand Prix: Titled Tuesday Blitz"]
[Site "Chess.com"]
[Date "2020.09.29"]
[Round "2"]
[White "jefferyx"]
[Black "DenisQ"]
[Result "0-1"]
[WhiteElo "2941"]
[BlackElo "2612"]
[TimeControl "180+1"]
[EndTime "10:16:21 PDT"]
[Termination "DenisQ won by resignation"]

1. d4 {[%clk 0:02:00.4]} 1... d5 {[%clk 0:02:52.7]} 2. c4 {[%clk 0:01:58.5]}
2... c6 {[%clk 0:02:52.5]} 3. Nf3 {[%clk 0:01:58.4]} 3... Nf6 {[%clk 0:02:52.8]}
4. cxd5 {[%clk 0:01:59.3]} 4... cxd5 {[%clk 0:02:52.1]} 5. Nc3 {[%clk
0:02:00.2]} 5... Nc6 {[%clk 0:02:52.3]} 6. Bf4 {[%clk 0:02:01]} 6... Bf5 {[%clk
0:02:51.7]} 7. Qb3 {[%clk 0:02:01]} 7... Na5 {[%clk 0:02:50.5]} 8. Qa4+ {[%clk
0:02:01.5]} 8... Bd7 {[%clk 0:02:50.3]} 9. Qc2 {[%clk 0:02:02.2]} 9... Rc8
{[%clk 0:02:49.7]} 10. e3 {[%clk 0:02:02.3]} 10... e6 {[%clk 0:02:49.2]} 11. Bd3
{[%clk 0:02:02.3]} 11... Bb4 {[%clk 0:02:44.2]} 12. O-O {[%clk 0:02:02.4]} 12...
O-O {[%clk 0:02:41.2]} 13. Ne5 {[%clk 0:02:02.7]} 13... Nc6 {[%clk 0:02:32.8]}
14. a3 {[%clk 0:02:03]} 14... Bxc3 {[%clk 0:02:23.3]} 15. bxc3 {[%clk
0:02:02.3]} 15... h6 {[%clk 0:02:01.1]} 16. Rfb1 {[%clk 0:02:02.1]} 16... Nxe5
{[%clk 0:01:35]} 17. Bxe5 {[%clk 0:02:03]} 17... Bc6 {[%clk 0:01:29.3]} 18. Qe2
{[%clk 0:01:56.5]} 18... Nd7 {[%clk 0:01:28.6]} 19. Bg3 {[%clk 0:01:44.6]} 19...
Nb6 {[%clk 0:01:28.3]} 20. Bc2 {[%clk 0:01:45.1]} 20... Qd7 {[%clk 0:01:22.5]}
21. Qd3 {[%clk 0:01:45.1]} 21... f5 {[%clk 0:01:22.6]} 22. Rb4 {[%clk
0:01:36.4]} 22... Ba4 {[%clk 0:01:20]} 23. Bb1 {[%clk 0:01:26.2]} 23... Rc6
{[%clk 0:01:15.7]} 24. Ba2 {[%clk 0:01:21]} 24... Rfc8 {[%clk 0:01:15.1]} 25.
Rc1 {[%clk 0:01:21.6]} 25... a5 {[%clk 0:01:09.8]} 26. Rb2 {[%clk 0:01:17.5]}
26... Nc4 {[%clk 0:01:09.3]} 27. Bxc4 {[%clk 0:01:16.9]} 27... Rxc4 {[%clk
0:01:10.1]} 28. Be5 {[%clk 0:01:16.8]} 28... Qc6 {[%clk 0:01:07.1]} 29. h4
{[%clk 0:01:14.1]} 29... b5 {[%clk 0:01:04.1]} 30. Kh2 {[%clk 0:00:57]} 30...
Rxc3 {[%clk 0:01:02.9]} 31. Rxc3 {[%clk 0:00:57.9]} 31... Qxc3 {[%clk 0:01:03]}
32. Qxc3 {[%clk 0:00:58.8]} 32... Rxc3 {[%clk 0:01:02.2]} 33. Bd6 {[%clk
0:00:59.7]} 33... Rc2 {[%clk 0:01:00.4]} 34. Rxc2 {[%clk 0:00:58.7]} 34... Bxc2
{[%clk 0:01:01.3]} 35. Kg3 {[%clk 0:00:55.8]} 35... g5 {[%clk 0:00:59.4]} 36.
hxg5 {[%clk 0:00:55.4]} 36... hxg5 {[%clk 0:01:00.3]} 37. Be7 {[%clk 0:00:55.8]}
37... Kf7 {[%clk 0:00:59.4]} 38. Bc5 {[%clk 0:00:33]} 38... Ke8 {[%clk
0:00:59.1]} 39. f4 {[%clk 0:00:33.7]} 39... g4 {[%clk 0:00:58.9]} 40. Kh4 {[%clk
0:00:34.1]} 40... Kd7 {[%clk 0:00:58.3]} 41. g3 {[%clk 0:00:33.3]} 41... Kc6
{[%clk 0:00:57.7]} 42. Kg5 {[%clk 0:00:33.9]} 42... b4 {[%clk 0:00:53.5]} 43.
axb4 {[%clk 0:00:34.8]} 43... a4 {[%clk 0:00:53.8]} 44. b5+ {[%clk 0:00:35.7]}
44... Kxb5 {[%clk 0:00:54]} 45. Kf6 {[%clk 0:00:36.6]} 45... Kc4 {[%clk
0:00:53.2]} 46. Kxe6 {[%clk 0:00:36.9]} 46... Be4 {[%clk 0:00:53.2]} 0-1

[Event "*** SCC Grand Prix: Titled Tuesday Blitz"]
[Site "Chess.com"]
[Date "2020.09.29"]
[Round "2"]
[White "lucasmito"]
[Black "Evandro_Barbosa"]
[Result "0-1"]
[WhiteElo "2479"]
[BlackElo "2736"]
[TimeControl "180+1"]
[EndTime "10:16:22 PDT"]
[Termination "Evandro_Barbosa won on time"]

1. e4 {[%clk 0:03:00.9]} 1... c5 {[%clk 0:02:59.6]} 2. Nf3 {[%clk 0:02:32.9]}
2... e6 {[%clk 0:02:59.9]} 3. d4 {[%clk 0:02:28.7]} 3... cxd4 {[%clk 0:03:00.8]}
4. Nxd4 {[%clk 0:02:29]} 4... d6 {[%clk 0:03:01.2]} 5. Nc3 {[%clk 0:02:28.9]}
5... Nc6 {[%clk 0:03:00.3]} 6. Be3 {[%clk 0:02:27]} 6... Nf6 {[%clk 0:03:00.6]}
7. f3 {[%clk 0:02:26.4]} 7... Be7 {[%clk 0:03:00.4]} 8. Qd2 {[%clk 0:02:24]}
8... O-O {[%clk 0:02:59.4]} 9. O-O-O {[%clk 0:02:20.9]} 9... d5 {[%clk
0:02:58.4]} 10. exd5 {[%clk 0:02:15.2]} 10... Nxd5 {[%clk 0:02:58.4]} 11. Nxd5
{[%clk 0:02:15.4]} 11... Qxd5 {[%clk 0:02:58.4]} 12. Kb1 {[%clk 0:02:03.2]}
12... Bf6 {[%clk 0:02:38.7]} 13. Nxc6 {[%clk 0:01:45.9]} 13... Qxc6 {[%clk
0:02:37.2]} 14. Bd3 {[%clk 0:01:34.4]} 14... Rd8 {[%clk 0:02:19.6]} 15. h4
{[%clk 0:01:31.8]} 15... e5 {[%clk 0:02:00.7]} 16. Qf2 {[%clk 0:01:06]} 16...
Be6 {[%clk 0:01:54.7]} 17. g4 {[%clk 0:01:01]} 17... e4 {[%clk 0:01:17.7]} 18.
Bxe4 {[%clk 0:00:52.2]} 18... Qc4 {[%clk 0:01:16.7]} 19. c3 {[%clk 0:00:14]}
19... Qxa2+ {[%clk 0:01:15.6]} 20. Kc1 {[%clk 0:00:14.5]} 20... Bb3 {[%clk
0:00:45.3]} 21. Bb1 {[%clk 0:00:10.4]} 21... Qa1 {[%clk 0:00:43.1]} 22. Rxd8+
{[%clk 0:00:08.6]} 22... Rxd8 {[%clk 0:00:41.6]} 0-1

[Event "*** SCC Grand Prix: Titled Tuesday Blitz"]
[Site "Chess.com"]
[Date "2020.09.29"]
[Round "2"]
[White "sofaceindisguise"]
[Black "stolencandy13"]
[Result "1-0"]
[WhiteElo "2710"]
[BlackElo "2464"]
[TimeControl "180+1"]
[EndTime "10:16:22 PDT"]
[Termination "sofaceindisguise won by resignation"]

1. c4 {[%clk 0:03:00.9]} 1... Nf6 {[%clk 0:02:58.9]} 2. Nf3 {[%clk 0:03:01.8]}
2... e6 {[%clk 0:02:55]} 3. g3 {[%clk 0:03:00.8]} 3... d5 {[%clk 0:02:54.2]} 4.
Bg2 {[%clk 0:02:59.1]} 4... g6 {[%clk 0:02:50.5]} 5. O-O {[%clk 0:02:59.3]} 5...
Bg7 {[%clk 0:02:50.7]} 6. d4 {[%clk 0:02:58.5]} 6... O-O {[%clk 0:02:49.9]} 7.
Qc2 {[%clk 0:02:55.1]} 7... c6 {[%clk 0:02:49.4]} 8. Nbd2 {[%clk 0:02:50.3]}
8... Nbd7 {[%clk 0:02:47.6]} 9. e4 {[%clk 0:02:48]} 9... dxe4 {[%clk 0:02:43.4]}
10. Nxe4 {[%clk 0:02:47.5]} 10... Nxe4 {[%clk 0:02:43.9]} 11. Qxe4 {[%clk
0:02:48.4]} 11... Re8 {[%clk 0:02:40]} 12. Bf4 {[%clk 0:02:43.6]} 12... Qb6
{[%clk 0:02:29.5]} 13. b3 {[%clk 0:02:32.3]} 13... a5 {[%clk 0:02:28]} 14. Rad1
{[%clk 0:02:32.2]} 14... a4 {[%clk 0:02:25.7]} 15. Qc2 {[%clk 0:02:29]} 15...
axb3 {[%clk 0:02:24.5]} 16. axb3 {[%clk 0:02:29.9]} 16... Ra3 {[%clk 0:02:17.8]}
17. Rb1 {[%clk 0:02:28.5]} 17... c5 {[%clk 0:02:15.1]} 18. dxc5 {[%clk
0:02:25.4]} 18... Qxc5 {[%clk 0:02:01.6]} 19. Rfd1 {[%clk 0:02:24.5]} 19... e5
{[%clk 0:01:51.5]} 20. Bc1 {[%clk 0:02:22.5]} 20... Ra6 {[%clk 0:01:41.8]} 21.
Be3 {[%clk 0:02:21.1]} 21... Qc7 {[%clk 0:01:36.6]} 22. b4 {[%clk 0:02:17.5]}
22... Nb6 {[%clk 0:01:27.1]} 23. c5 {[%clk 0:02:14.2]} 23... Bf5 {[%clk
0:01:26.3]} 24. Qb3 {[%clk 0:02:07.1]} 24... Bxb1 {[%clk 0:01:21.7]} 25. Rxb1
{[%clk 0:02:02.2]} 25... Nd7 {[%clk 0:01:10.2]} 26. Ng5 {[%clk 0:02:02.4]} 26...
Rf8 {[%clk 0:00:59.2]} 27. Bd5 {[%clk 0:02:01.8]} 27... Nf6 {[%clk 0:00:59]} 28.
Bc4 {[%clk 0:02:00.2]} 28... Raa8 {[%clk 0:00:52.9]} 29. b5 {[%clk 0:02:00]}
29... h6 {[%clk 0:00:53]} 30. Nf3 {[%clk 0:01:58.3]} 30... Ng4 {[%clk
0:00:50.5]} 31. b6 {[%clk 0:01:54.1]} 31... Qe7 {[%clk 0:00:50.4]} 32. Bd5
{[%clk 0:01:47.6]} 32... Rac8 {[%clk 0:00:48.1]} 33. Rc1 {[%clk 0:01:44.1]}
33... Nxe3 {[%clk 0:00:47.6]} 34. Qxe3 {[%clk 0:01:43.2]} 34... Rfd8 {[%clk
0:00:46.7]} 35. Ba2 {[%clk 0:01:29.3]} 35... e4 {[%clk 0:00:46.6]} 36. Nd2
{[%clk 0:01:27.2]} 36... Re8 {[%clk 0:00:36.7]} 37. Bd5 {[%clk 0:01:24.1]} 37...
Bf8 {[%clk 0:00:30.7]} 38. Nxe4 {[%clk 0:01:19.8]} 38... Qe5 {[%clk 0:00:29.4]}
39. Qb3 {[%clk 0:01:15.4]} 39... Re7 {[%clk 0:00:23.9]} 40. Nd6 {[%clk
0:01:10.2]} 40... Rd8 {[%clk 0:00:20.8]} 41. Bxf7+ {[%clk 0:01:04.3]} 41... Kh8
{[%clk 0:00:19.1]} 42. Bxg6 {[%clk 0:01:01.9]} 42... Re6 {[%clk 0:00:17.8]} 43.
Nf7+ {[%clk 0:01:01.3]} 1-0

[Event "*** SCC Grand Prix: Titled Tuesday Blitz"]
[Site "Chess.com"]
[Date "2020.09.29"]
[Round "2"]
[White "GMJustin"]
[Black "djano"]
[Result "0-1"]
[WhiteElo "2290"]
[BlackElo "2455"]
[TimeControl "180+1"]
[EndTime "10:16:22 PDT"]
[Termination "djano won on time"]

1. d4 {[%clk 0:02:31.5]} 1... g6 {[%clk 0:02:59.3]} 2. e4 {[%clk 0:02:20.9]}
2... Bg7 {[%clk 0:02:58.8]} 3. h4 {[%clk 0:02:10.2]} 3... c5 {[%clk 0:02:57.3]}
4. dxc5 {[%clk 0:01:56.8]} 4... Nf6 {[%clk 0:02:48]} 5. e5 {[%clk 0:01:32.2]}
5... Ng8 {[%clk 0:02:48]} 6. Nf3 {[%clk 0:01:19]} 6... Nc6 {[%clk 0:02:48.1]} 7.
h5 {[%clk 0:00:59.2]} 7... Nxe5 {[%clk 0:02:45.2]} 8. hxg6 {[%clk 0:00:56.4]}
8... hxg6 {[%clk 0:02:40.5]} 9. Rxh8 {[%clk 0:00:52]} 9... Bxh8 {[%clk
0:02:41.4]} 10. Nxe5 {[%clk 0:00:34.5]} 10... Bxe5 {[%clk 0:02:42.3]} 11. Qd5
{[%clk 0:00:34.7]} 11... Bg7 {[%clk 0:02:39]} 12. Bc4 {[%clk 0:00:27.5]} 12...
e6 {[%clk 0:02:39.1]} 13. Qd6 {[%clk 0:00:27.1]} 13... Qh4 {[%clk 0:02:29.5]}
14. Na3 {[%clk 0:00:18.3]} 14... Ne7 {[%clk 0:02:16.9]} 15. c3 {[%clk 0:00:07]}
15... Nf5 {[%clk 0:02:00.5]} 16. Qf4 {[%clk 0:00:06.8]} 16... Qh1+ {[%clk
0:02:00.3]} 17. Bf1 {[%clk 0:00:06.6]} 17... Bh6 {[%clk 0:01:31.4]} 18. Qe5
{[%clk 0:00:06.3]} 18... Bg7 {[%clk 0:01:31.2]} 19. Qf4 {[%clk 0:00:05.9]} 19...
e5 {[%clk 0:01:31.3]} 20. Qe4 {[%clk 0:00:02.9]} 20... d5 {[%clk 0:01:30.2]} 21.
cxd6 {[%clk 0:00:02.3]} 21... Nxd6 {[%clk 0:01:30.5]} 22. Qd5 {[%clk 0:00:02.1]}
22... Nf5 {[%clk 0:01:25.3]} 23. Nb5 {[%clk 0:00:02.1]} 23... Be6 {[%clk
0:01:10.2]} 24. Nc7+ {[%clk 0:00:02.3]} 24... Kf8 {[%clk 0:01:05.5]} 25. Nxe6+
{[%clk 0:00:02.2]} 25... fxe6 {[%clk 0:01:05.5]} 26. Qxe6 {[%clk 0:00:02.3]}
26... Re8 {[%clk 0:01:05.4]} 27. Qxg6 {[%clk 0:00:01.9]} 27... Ne7 {[%clk
0:01:03.3]} 28. Qg5 {[%clk 0:00:01.9]} 28... Nd5 {[%clk 0:01:00.8]} 29. Be3
{[%clk 0:00:01.7]} 29... e4 {[%clk 0:00:56.2]} 0-1

[Event "*** SCC Grand Prix: Titled Tuesday Blitz"]
[Site "Chess.com"]
[Date "2020.09.29"]
[Round "2"]
[White "GalperinPlaton"]
[Black "GM_LOADING"]
[Result "1-0"]
[WhiteElo "2766"]
[BlackElo "2495"]
[TimeControl "180+1"]
[EndTime "10:16:23 PDT"]
[Termination "GalperinPlaton won by resignation"]

1. d4 {[%clk 0:02:59.7]} 1... Nf6 {[%clk 0:02:59.6]} 2. Nc3 {[%clk 0:02:59.6]}
2... d5 {[%clk 0:02:58.8]} 3. Bf4 {[%clk 0:03:00.3]} 3... c5 {[%clk 0:02:50.2]}
4. e3 {[%clk 0:03:00.3]} 4... cxd4 {[%clk 0:02:49.3]} 5. exd4 {[%clk 0:03:01.2]}
5... a6 {[%clk 0:02:48.2]} 6. Bd3 {[%clk 0:03:01.2]} 6... Nc6 {[%clk 0:02:47.8]}
7. Nge2 {[%clk 0:03:00.2]} 7... Bg4 {[%clk 0:02:47.1]} 8. Qd2 {[%clk 0:02:55.3]}
8... e6 {[%clk 0:02:45.7]} 9. Bg5 {[%clk 0:02:51.2]} 9... Rc8 {[%clk 0:02:40.7]}
10. Ng3 {[%clk 0:02:50.7]} 10... Nxd4 {[%clk 0:01:27.4]} 11. Qf4 {[%clk
0:02:39.4]} 11... Qb6 {[%clk 0:01:24.7]} 12. Bxf6 {[%clk 0:01:21]} 12... gxf6
{[%clk 0:01:24.1]} 13. O-O {[%clk 0:01:16.1]} 13... Rg8 {[%clk 0:00:48.2]} 14.
Rfe1 {[%clk 0:01:02.3]} 14... Be7 {[%clk 0:00:30.1]} 15. Bxh7 {[%clk 0:00:58.8]}
15... Rg7 {[%clk 0:00:22.3]} 16. Qh6 {[%clk 0:00:54.6]} 16... Kf8 {[%clk
0:00:19.6]} 17. Nxd5 {[%clk 0:00:51.4]} 17... exd5 {[%clk 0:00:05.6]} 18. Rxe7
{[%clk 0:00:52.3]} 18... Kxe7 {[%clk 0:00:06.1]} 19. Qxg7 {[%clk 0:00:52.7]}
19... Bd7 {[%clk 0:00:06.5]} 20. Re1+ {[%clk 0:00:51.7]} 20... Be6 {[%clk
0:00:06.4]} 21. c3 {[%clk 0:00:49.8]} 21... Qxb2 {[%clk 0:00:02.7]} 22. cxd4
{[%clk 0:00:49.1]} 22... Rc1 {[%clk 0:00:02.8]} 23. Rf1 {[%clk 0:00:44.7]} 23...
Rxf1+ {[%clk 0:00:02.6]} 24. Nxf1 {[%clk 0:00:45.6]} 24... Bd7 {[%clk
0:00:02.4]} 25. Qg3 {[%clk 0:00:42.2]} 1-0

[Event "*** SCC Grand Prix: Titled Tuesday Blitz"]
[Site "Chess.com"]
[Date "2020.09.29"]
[Round "2"]
[White "Zmeeed63"]
[Black "Evgeny81"]
[Result "0-1"]
[WhiteElo "2367"]
[BlackElo "2668"]
[TimeControl "180+1"]
[EndTime "10:16:24 PDT"]
[Termination "Evgeny81 won by checkmate"]

1. d4 {[%clk 0:03:00.9]} 1... Nf6 {[%clk 0:02:58.9]} 2. c4 {[%clk 0:03:01.2]}
2... e5 {[%clk 0:02:59.4]} 3. dxe5 {[%clk 0:03:00.9]} 3... Ne4 {[%clk
0:02:59.9]} 4. Nd2 {[%clk 0:02:53.3]} 4... Nc5 {[%clk 0:02:58.8]} 5. Ngf3 {[%clk
0:02:50.6]} 5... Nc6 {[%clk 0:02:58.8]} 6. a3 {[%clk 0:02:41]} 6... a5 {[%clk
0:02:58.9]} 7. b3 {[%clk 0:02:33.3]} 7... d6 {[%clk 0:02:58]} 8. Bb2 {[%clk
0:02:30]} 8... Bf5 {[%clk 0:02:53.6]} 9. e3 {[%clk 0:02:17.4]} 9... Nd3+ {[%clk
0:02:42.4]} 10. Bxd3 {[%clk 0:02:16.9]} 10... Bxd3 {[%clk 0:02:43.3]} 11. Qc1
{[%clk 0:02:03.8]} 11... dxe5 {[%clk 0:02:37]} 12. Nxe5 {[%clk 0:02:02.9]} 12...
Nxe5 {[%clk 0:02:36.1]} 13. Bxe5 {[%clk 0:02:03.8]} 13... Qg5 {[%clk 0:02:33.8]}
14. Qc3 {[%clk 0:01:57.7]} 14... Qxg2 {[%clk 0:02:22.4]} 15. Qxd3 {[%clk
0:01:52]} 15... Qxh1+ {[%clk 0:02:19.9]} 16. Ke2 {[%clk 0:01:52.5]} 16... Qc6
{[%clk 0:02:16.4]} 17. Nf3 {[%clk 0:01:35.3]} 17... Qg6 {[%clk 0:02:06.8]} 18.
e4 {[%clk 0:01:14.8]} 18... Rd8 {[%clk 0:01:43.9]} 19. Qe3 {[%clk 0:01:10.9]}
19... Qc6 {[%clk 0:01:33.4]} 20. Rg1 {[%clk 0:00:50.9]} 20... f6 {[%clk
0:01:29.9]} 21. Bb2 {[%clk 0:00:50.1]} 21... Bc5 {[%clk 0:01:19.4]} 22. Bd4
{[%clk 0:00:26]} 22... Bxd4 {[%clk 0:01:03.8]} 23. Nxd4 {[%clk 0:00:26.9]} 23...
Qd7 {[%clk 0:01:02]} 24. Nf5 {[%clk 0:00:22.8]} 24... g6 {[%clk 0:01:02]} 25.
Nh6 {[%clk 0:00:20]} 25... Qd4 {[%clk 0:00:54.5]} 26. Ng4 {[%clk 0:00:18.5]}
26... Kf7 {[%clk 0:00:45.7]} 27. Nh6+ {[%clk 0:00:15.2]} 27... Ke7 {[%clk
0:00:43.3]} 28. Qf4 {[%clk 0:00:04.4]} 28... Qd3+ {[%clk 0:00:41.7]} 29. Ke1
{[%clk 0:00:04.6]} 29... Qd1# {[%clk 0:00:41.5]} 0-1

[Event "*** SCC Grand Prix: Titled Tuesday Blitz"]
[Site "Chess.com"]
[Date "2020.09.29"]
[Round "2"]
[White "ARTHURMOTIVATOR"]
[Black "Ziachess74"]
[Result "0-1"]
[WhiteElo "2358"]
[BlackElo "2660"]
[TimeControl "180+1"]
[EndTime "10:16:24 PDT"]
[Termination "Ziachess74 won by resignation"]

1. e4 {[%clk 0:03:00.9]} 1... c5 {[%clk 0:02:58.4]} 2. b3 {[%clk 0:03:00]} 2...
g6 {[%clk 0:02:46.3]} 3. Bb2 {[%clk 0:02:59.2]} 3... Nf6 {[%clk 0:02:46.2]} 4.
e5 {[%clk 0:02:59.3]} 4... Nd5 {[%clk 0:02:45.8]} 5. Nf3 {[%clk 0:02:58.5]} 5...
Bg7 {[%clk 0:02:44.1]} 6. d4 {[%clk 0:02:58.5]} 6... Qa5+ {[%clk 0:02:21.7]} 7.
c3 {[%clk 0:02:55.6]} 7... cxd4 {[%clk 0:02:21.2]} 8. Qxd4 {[%clk 0:02:52.6]}
8... Nc6 {[%clk 0:02:20]} 9. Qe4 {[%clk 0:02:40.5]} 9... f5 {[%clk 0:02:11.3]}
10. exf6 {[%clk 0:02:35.3]} 10... Nxf6 {[%clk 0:02:09]} 11. Qc2 {[%clk
0:02:31.6]} 11... d5 {[%clk 0:02:04.9]} 12. Nbd2 {[%clk 0:02:15.3]} 12... e5
{[%clk 0:01:59.9]} 13. b4 {[%clk 0:01:27.4]} 13... Qc7 {[%clk 0:01:57.8]} 14. a3
{[%clk 0:01:23.4]} 14... Bf5 {[%clk 0:01:53.4]} 15. Qb3 {[%clk 0:01:22.8]} 15...
e4 {[%clk 0:01:45.3]} 16. Nd4 {[%clk 0:01:13.5]} 16... Nxd4 {[%clk 0:01:42.8]}
17. cxd4 {[%clk 0:01:12.7]} 17... O-O {[%clk 0:01:43.1]} 18. Be2 {[%clk
0:01:08.8]} 18... Bg4 {[%clk 0:01:36.6]} 19. Rc1 {[%clk 0:00:57.2]} 19... Qf7
{[%clk 0:01:29.2]} 20. Qe3 {[%clk 0:00:52.7]} 20... Bxe2 {[%clk 0:01:22.9]} 21.
Qxe2 {[%clk 0:00:51.5]} 21... Nh5 {[%clk 0:01:16.4]} 22. g3 {[%clk 0:00:43.6]}
22... Qd7 {[%clk 0:01:02.4]} 23. O-O {[%clk 0:00:36.8]} 23... Rae8 {[%clk
0:00:56.1]} 24. Rfe1 {[%clk 0:00:33.1]} 24... Bh6 {[%clk 0:00:53]} 25. Rc5
{[%clk 0:00:27.7]} 25... e3 {[%clk 0:00:51.5]} 26. fxe3 {[%clk 0:00:09.2]} 26...
Bxe3+ {[%clk 0:00:50.2]} 27. Kh1 {[%clk 0:00:10.1]} 27... Bf2 {[%clk 0:00:45.1]}
0-1

[Event "*** SCC Grand Prix: Titled Tuesday Blitz"]
[Site "Chess.com"]
[Date "2020.09.29"]
[Round "2"]
[White "Agnes66678"]
[Black "VMikhalevski"]
[Result "0-1"]
[WhiteElo "2475"]
[BlackElo "2726"]
[TimeControl "180+1"]
[EndTime "10:16:25 PDT"]
[Termination "VMikhalevski won by resignation"]

1. Nf3 {[%clk 0:02:27.5]} 1... Nf6 {[%clk 0:02:58.6]} 2. g3 {[%clk 0:02:27.1]}
2... d5 {[%clk 0:02:56.3]} 3. Bg2 {[%clk 0:02:27.5]} 3... c6 {[%clk 0:02:55.5]}
4. O-O {[%clk 0:02:27.8]} 4... Bg4 {[%clk 0:02:55.1]} 5. h3 {[%clk 0:02:27.3]}
5... Bh5 {[%clk 0:02:54.4]} 6. d3 {[%clk 0:02:26]} 6... e6 {[%clk 0:02:54.3]} 7.
c4 {[%clk 0:02:25.6]} 7... Nbd7 {[%clk 0:02:48.6]} 8. cxd5 {[%clk 0:02:25.6]}
8... exd5 {[%clk 0:02:47.8]} 9. Nc3 {[%clk 0:02:25.7]} 9... Bc5 {[%clk
0:02:46.4]} 10. e4 {[%clk 0:02:23.6]} 10... dxe4 {[%clk 0:02:42.7]} 11. dxe4
{[%clk 0:02:24.5]} 11... O-O {[%clk 0:02:42.7]} 12. Qc2 {[%clk 0:02:22]} 12...
Re8 {[%clk 0:02:32.4]} 13. Nh4 {[%clk 0:02:17.9]} 13... Ne5 {[%clk 0:02:31.6]}
14. Bg5 {[%clk 0:02:08.6]} 14... h6 {[%clk 0:02:18.6]} 15. Bf4 {[%clk
0:02:02.3]} 15... Qd3 {[%clk 0:02:09.8]} 16. Rac1 {[%clk 0:01:55.4]} 16... Qxc2
{[%clk 0:02:06]} 17. Rxc2 {[%clk 0:01:56.3]} 17... Nd3 {[%clk 0:02:06.2]} 18.
Bd2 {[%clk 0:01:49.9]} 18... Rad8 {[%clk 0:01:52.1]} 19. g4 {[%clk 0:01:46.3]}
19... Nb4 {[%clk 0:01:39.8]} 20. Rfc1 {[%clk 0:01:34.2]} 20... Nxc2 {[%clk
0:01:36.5]} 21. Rxc2 {[%clk 0:01:35.1]} 21... Bg6 {[%clk 0:01:32.7]} 22. Nxg6
{[%clk 0:01:35]} 22... fxg6 {[%clk 0:01:32.8]} 23. Kf1 {[%clk 0:01:29.9]} 23...
g5 {[%clk 0:01:30.4]} 24. f3 {[%clk 0:01:22.4]} 24... Nd7 {[%clk 0:01:28.8]} 25.
Ne2 {[%clk 0:01:20.2]} 25... Bb6 {[%clk 0:01:24.2]} 26. Ng3 {[%clk 0:01:17.8]}
26... Ne5 {[%clk 0:01:23.4]} 27. Bc3 {[%clk 0:01:14]} 27... g6 {[%clk
0:01:20.5]} 28. Bxe5 {[%clk 0:01:10.8]} 28... Rxe5 {[%clk 0:01:19.6]} 29. Ke2
{[%clk 0:01:11.7]} 29... Rc5 {[%clk 0:01:16.9]} 30. Rxc5 {[%clk 0:01:10]} 30...
Bxc5 {[%clk 0:01:17.1]} 31. Nf1 {[%clk 0:01:10.9]} 31... Kf7 {[%clk 0:01:15.1]}
32. Nd2 {[%clk 0:01:10.4]} 32... Ke6 {[%clk 0:01:13.2]} 33. h4 {[%clk
0:01:03.4]} 33... gxh4 {[%clk 0:01:02.8]} 34. f4 {[%clk 0:01:02.3]} 34... g5
{[%clk 0:00:57.5]} 35. f5+ {[%clk 0:00:59.9]} 35... Ke5 {[%clk 0:00:56]} 36.
Nf3+ {[%clk 0:00:53.4]} 36... Kf4 {[%clk 0:00:55.5]} 37. e5 {[%clk 0:00:50.2]}
37... Kxg4 {[%clk 0:00:53.3]} 38. f6 {[%clk 0:00:48.7]} 38... Kg3 {[%clk
0:00:52.6]} 39. e6 {[%clk 0:00:43.5]} 39... Kxg2 {[%clk 0:00:46.8]} 40. Ne5
{[%clk 0:00:41.5]} 40... Re8 {[%clk 0:00:43.8]} 0-1

[Event "*** SCC Grand Prix: Titled Tuesday Blitz"]
[Site "Chess.com"]
[Date "2020.09.29"]
[Round "2"]
[White "Iskusnyh"]
[Black "Gordima"]
[Result "1/2-1/2"]
[WhiteElo "2547"]
[BlackElo "2847"]
[TimeControl "180+1"]
[EndTime "10:16:28 PDT"]
[Termination "Game drawn by repetition"]

1. d4 {[%clk 0:03:00.9]} 1... d5 {[%clk 0:02:57.1]} 2. c4 {[%clk 0:03:00.9]}
2... e6 {[%clk 0:02:57.7]} 3. Nf3 {[%clk 0:03:00.4]} 3... Nf6 {[%clk 0:02:57.8]}
4. g3 {[%clk 0:02:59.8]} 4... dxc4 {[%clk 0:02:58.2]} 5. Bg2 {[%clk 0:02:59.7]}
5... Nc6 {[%clk 0:02:58.9]} 6. O-O {[%clk 0:02:58.2]} 6... Rb8 {[%clk 0:02:59]}
7. Ne5 {[%clk 0:02:56.8]} 7... Nxe5 {[%clk 0:02:52.8]} 8. dxe5 {[%clk
0:02:56.2]} 8... Qxd1 {[%clk 0:02:52.7]} 9. Rxd1 {[%clk 0:02:54.6]} 9... Nd5
{[%clk 0:02:51]} 10. Bxd5 {[%clk 0:02:21.9]} 10... exd5 {[%clk 0:02:51.2]} 11.
Rxd5 {[%clk 0:02:21.7]} 11... Be6 {[%clk 0:02:50.2]} 12. Rd1 {[%clk 0:02:20]}
12... Bc5 {[%clk 0:02:32.4]} 13. Nc3 {[%clk 0:02:18.8]} 13... h6 {[%clk
0:02:32]} 14. Nd5 {[%clk 0:01:50.6]} 14... Rc8 {[%clk 0:02:06.9]} 15. Be3 {[%clk
0:01:47.1]} 15... Bxd5 {[%clk 0:01:51.6]} 16. Bxc5 {[%clk 0:01:45.9]} 16... Be6
{[%clk 0:01:50]} 17. Rd2 {[%clk 0:01:37.8]} 17... b6 {[%clk 0:01:50]} 18. Bb4
{[%clk 0:01:36.6]} 18... a5 {[%clk 0:01:39.2]} 19. Bc3 {[%clk 0:01:30.6]} 19...
g5 {[%clk 0:01:31.2]} 20. Rad1 {[%clk 0:01:28.8]} 20... Ke7 {[%clk 0:01:27.4]}
21. f4 {[%clk 0:01:27.5]} 21... gxf4 {[%clk 0:01:24.2]} 22. gxf4 {[%clk
0:01:27.1]} 22... Bf5 {[%clk 0:01:22.7]} 23. Kf2 {[%clk 0:01:23]} 23... Rhg8
{[%clk 0:01:15.2]} 24. Rd4 {[%clk 0:01:19.8]} 24... Rcd8 {[%clk 0:01:06.8]} 25.
Rxd8 {[%clk 0:01:10.7]} 25... Rxd8 {[%clk 0:01:07.7]} 26. Rxd8 {[%clk
0:01:09.8]} 26... Kxd8 {[%clk 0:01:08.6]} 27. Kf3 {[%clk 0:01:10.1]} 27... Bb1
{[%clk 0:00:51.5]} 28. a3 {[%clk 0:01:08.7]} 28... Kd7 {[%clk 0:00:41.5]} 29. e4
{[%clk 0:01:08.3]} 29... Bc2 {[%clk 0:00:34.1]} 30. f5 {[%clk 0:01:07.8]} 30...
Bd1+ {[%clk 0:00:30.6]} 31. Ke3 {[%clk 0:01:06.5]} 31... c5 {[%clk 0:00:30.6]}
32. h4 {[%clk 0:01:03.5]} 32... Kc6 {[%clk 0:00:24.6]} 33. Kf4 {[%clk
0:00:59.1]} 33... Kd7 {[%clk 0:00:16.6]} 34. Bd2 {[%clk 0:00:57.1]} 34... Bc2
{[%clk 0:00:11]} 35. Bc3 {[%clk 0:00:56]} 35... Bd1 {[%clk 0:00:10.5]} 36. Bd2
{[%clk 0:00:55.6]} 36... Bc2 {[%clk 0:00:10.4]} 37. Bc3 {[%clk 0:00:55.6]} 37...
Bd1 {[%clk 0:00:06.9]} 1/2-1/2